bitfinex/quotes_SOLUSD_20250902
["timestamp","ask_amount","ask_price","bid_price","bid_amount"]
[1756844128944,7.88471943,206.55,206.53,26.0]
[1756844129152,0.06,206.6,206.54,22.15031344]
[1756844129313,0.06,206.6,206.58,13.59559401]
[1756844129637,0.06,206.6,206.59,39.59559401]
[1756844129967,0.06,206.6,206.59,47.48031344]
[1756844130112,0.06,206.6,206.59,48.15031344]
[1756844130313,0.06,206.6,206.59,79.62559401]
[1756844130747,0.06,206.6,206.59,92.35081878]
[1756844131119,0.06,206.6,206.59,84.46609935]
[1756844131317,0.06,206.6,206.59,92.35081878]
[1756844131640,0.06,206.6,206.59,84.44609935]
[1756844132028,0.06,206.6,206.59,45.10609935]
[1756844132736,0.06,206.6,206.59,52.99081878]
[1756844133043,0.06,206.6,206.59,45.53258406]
[1756844133211,0.06,206.6,206.59,53.41730349]
[1756844134040,0.06,206.6,206.59,92.73730349]
[1756844135070,1e-08,206.6,206.59,92.73730349]
[1756844135286,1e-08,206.6,206.59,100.62202292]
[1756844135569,1e-08,206.6,206.59,53.41730349]
[1756844135769,1e-08,206.6,206.59,92.93730349]
[1756844136447,0.68,206.75,206.68,13.59559401]
[1756844136755,7.88471943,206.73,206.71,4.83769532]
[1756844136940,0.68,206.75,206.7,18.43348559]
[1756844137140,7.88471943,206.72,206.7,18.43348559]
[1756844137566,7.88471943,206.73,206.7,18.43348559]
[1756844137862,7.88471943,206.72,206.7,13.59559401]
[1756844138076,7.88471943,206.72,206.69,13.59559401]
[1756844138249,7.88471943,206.7,206.67,13.59559401]
[1756844138445,0.68,206.71,206.67,13.59559401]
[1756844138648,0.68,206.71,206.67,39.59559401]
[1756844138951,7.88471943,206.69,206.67,39.59559401]
[1756844139155,7.88471943,206.7,206.67,44.43418273]
[1756844139667,7.88471943,206.71,206.67,45.10418273]
[1756844139839,7.88471943,206.72,206.67,84.76418273]
[1756844140164,7.88471943,206.76,206.7,7.88471943]
[1756844140354,7.88471943,206.76,206.71,13.59559401]
[1756844140539,7.88471943,206.76,206.71,14.26559401]
[1756844140745,0.68,206.8,206.73,4.8372273]
[1756844141052,7.88471943,206.77,206.73,4.8372273]
[1756844141364,0.68,206.8,206.74,0.7]
[1756844141535,0.68,206.8,206.74,13.59559401]
[1756844141862,38.64833991,206.93,206.73,82.57029555]
[1756844141863,7.88471943,206.83,206.78,13.59559401]
[1756844142166,7.88471943,206.82,206.78,13.59559401]
[1756844142468,7.88471943,206.82,206.79,13.59559401]
[1756844142843,7.88471943,206.82,206.79,18.43136988]
[1756844143048,7.88471943,206.88,206.79,4.83577587]
[1756844143242,7.88471943,206.83,206.79,4.83577587]
[1756844143566,0.71,206.85,206.79,5.53577587]
[1756844144062,0.71,206.85,206.79,4.83577587]
[1756844144365,7.88471943,206.83,206.79,4.83577587]
[1756844144564,7.88471943,206.81,206.78,4.83605367]
[1756844144746,7.88471943,206.8,206.76,4.83629214]
[1756844144946,7.88471943,206.77,206.74,39.58]
[1756844145138,7.88471943,206.88,206.75,14.29559401]
[1756844145139,0.71,206.82,206.75,14.29559401]
[1756844145471,7.88471943,206.8,206.75,22.18031344]
[1756844145655,7.88471943,206.8,206.76,0.7]
[1756844145851,7.88471943,206.78,206.74,4.83695435]
[1756844146041,4.83395369,206.87,206.72,5.53728766]
[1756844146042,7.88471943,206.76,206.72,5.53728766]
[1756844146247,7.88471943,206.75,206.72,5.53728766]
[1756844146452,16.91883791,206.87,206.73,22.18031344]
[1756844146453,0.71,206.84,206.73,22.18031344]
[1756844146652,7.88471943,206.81,206.76,13.59559401]
[1756844146945,7.88471943,206.81,206.78,4.83605764]
[1756844147347,7.88471943,206.81,206.78,5.53605764]
[1756844147949,7.88471943,206.8,206.77,44.41625959]
[1756844148160,7.88471943,206.81,206.77,45.11625959]
[1756844149445,7.88471943,206.82,206.78,13.59559401]
[1756844149645,7.88471943,206.83,206.79,0.7]
[1756844149950,7.88471943,206.83,206.8,0.7]
[1756844150258,7.88471943,206.81,206.78,53.11559401]
[1756844150565,7.88471943,206.79,206.76,26.0]
[1756844150768,7.88471943,206.77,206.76,26.0]
[1756844151066,7.88471943,206.77,206.75,4.83675937]
[1756844151253,0.71,206.85,206.77,13.59559401]
[1756844151455,7.88471943,206.81,206.77,13.59559401]
[1756844151651,7.88471943,206.81,206.77,14.29559401]
[1756844152053,7.88471943,206.82,206.78,0.7]
[1756844152255,7.88471943,206.81,206.77,13.59559401]
[1756844152462,7.88471943,206.81,206.77,14.29559401]
[1756844153169,7.88471943,206.81,206.78,4.83605764]
[1756844153467,7.88471943,206.79,206.78,30.83605764]
[1756844154042,8.59471943,206.79,206.71,13.59559401]
[1756844154267,8.59471943,206.79,206.71,53.03559401]
[1756844154268,7.88471943,206.74,206.71,53.03559401]
[1756844154464,7.88471943,206.74,206.71,4.83769532]
[1756844154660,7.88471943,206.74,206.71,5.53769532]
[1756844155273,7.88471943,206.74,206.72,0.7]
[1756844155469,7.88471943,206.74,206.71,4.83769532]
[1756844155670,0.71,206.78,206.71,5.53769532]
[1756844155671,7.88471943,206.75,206.71,5.53769532]
[1756844155854,7.88471943,206.73,206.71,4.83769532]
[1756844156052,0.71,206.75,206.71,26.0]
[1756844156053,7.88471943,206.72,206.71,26.0]
[1756844156261,0.71,206.75,206.71,26.0]
[1756844156464,7.88471943,206.72,206.71,26.0]
[1756844156972,8.59471943,206.72,206.68,4.83839752]
[1756844157172,7.88471943,206.69,206.68,4.83839752]
[1756844157376,7.88471943,206.69,206.65,0.7]
[1756844157550,7.88471943,206.67,206.65,40.1]
[1756844157751,7.88471943,206.67,206.63,25.69433546]
[1756844157953,7.88471943,206.67,206.66,26.0]
[1756844158475,7.88471943,206.67,206.64,4.8393341]
[1756844158783,7.88471943,206.66,206.64,4.8393341]
[1756844158955,7.88471943,206.66,206.65,26.0]
[1756844159160,7.88471943,206.66,206.62,13.59559401]
[1756844159369,7.88471943,206.64,206.62,4.83980253]
[1756844159685,7.88471943,206.64,206.6,0.73]
[1756844159883,7.88471943,206.61,206.6,4.87023533]
[1756844160786,7.88471943,206.61,206.6,0.03]
[1756844161088,8.59471943,206.61,206.6,0.03]
[1756844161783,0.71,206.66,206.6,0.03]
[1756844161969,7.88471943,206.62,206.6,0.03]
[1756844162169,0.71,206.74,206.61,22.18031344]
[1756844162375,7.88471943,206.71,206.66,7.88471943]
[1756844162561,7.88471943,206.71,206.67,0.7]
[1756844162755,0.71,206.7,206.62,39.59559401]
[1756844162956,7.88471943,206.67,206.62,39.59559401]
[1756844163262,7.88471943,206.67,206.64,4.8393341]
[1756844163461,7.88471943,206.67,206.64,5.5393341]
[1756844163784,7.88471943,206.68,206.65,0.7]
[1756844163993,0.71,206.77,206.67,47.48031344]
[1756844164288,7.88471943,206.73,206.68,0.7]
[1756844164459,59.32,206.86,206.67,13.59559401]
[1756844164460,7.88471943,206.7,206.67,13.59559401]
[1756844164786,8.59471943,206.76,206.64,4.8393341]
[1756844164787,7.88471943,206.68,206.64,4.8393341]
[1756844164953,7.88471943,206.67,206.66,26.0]
[1756844165158,7.88471943,206.68,206.66,26.0]
[1756844165578,7.88471943,206.67,206.66,30.83876634]
[1756844165893,7.88471943,206.67,206.64,26.0]
[1756844166085,7.88471943,206.66,206.64,26.0]
[1756844166593,7.88471943,206.65,206.62,4.83980253]
[1756844166890,7.88471943,206.63,206.6,0.03]
[1756844167058,0.71,206.72,206.62,13.59559401]
[1756844167261,4.8364906,206.77,206.64,21.48031344]
[1756844167571,7.88471943,206.7,206.66,4.83886576]
[1756844167970,0.71,206.75,206.66,4.83886576]
[1756844167971,7.88471943,206.69,206.66,4.83886576]
[1756844168179,7.88471943,206.68,206.66,4.83886576]
[1756844168593,0.71,206.76,206.67,26.7]
[1756844168763,7.88471943,206.74,206.69,7.88471943]
[1756844168962,7.88471943,206.74,206.7,0.7]
[1756844169176,7.88471943,206.74,206.68,21.48031344]
[1756844169375,7.88471943,206.73,206.68,13.59559401]
[1756844169581,7.88471943,206.73,206.67,73.90471943]
[1756844169582,7.88471943,206.71,206.69,30.83798333]
[1756844169985,7.88471943,206.73,206.69,30.83798333]
[1756844170299,0.71,206.77,206.7,0.7]
[1756844170481,7.88471943,206.74,206.7,0.7]
[1756844170666,7.88471943,206.73,206.69,30.83798333]
[1756844170994,7.88471943,206.75,206.7,0.7]
[1756844171179,7.88471943,206.73,206.7,0.72]
[1756844171365,7.88471943,206.73,206.69,42.93339191]
[1756844171568,7.88471943,206.73,206.69,43.65339191]
[1756844171769,0.69,206.78,206.7,14.31559401]
[1756844171993,7.88471943,206.75,206.7,14.31559401]
[1756844172297,7.88471943,206.75,206.71,0.72]
[1756844172483,7.88471943,206.75,206.72,0.72]
[1756844172673,7.88471943,206.77,206.73,0.72]
[1756844173008,7.88471943,206.77,206.71,7.88471943]
[1756844173009,7.88471943,206.77,206.74,0.72]
[1756844173602,0.06,206.76,206.74,0.72]
[1756844173781,0.06,206.76,206.71,7.88471943]
[1756844173782,0.06,206.76,206.72,4.8374613]
[1756844173979,7.94471943,206.76,206.72,5.5574613]
[1756844174169,7.88471943,206.75,206.72,4.8374613]
[1756844174369,7.88471943,206.75,206.73,0.72]
[1756844174594,7.88471943,206.75,206.72,4.8374613]
[1756844174803,7.88471943,206.75,206.73,0.72]
[1756844175019,7.88471943,206.75,206.72,4.8374613]
[1756844175493,7.88471943,206.75,206.72,5.5574613]
[1756844175785,7.94471943,206.76,206.7,21.48031344]
[1756844175988,0.06,206.76,206.74,39.59559401]
[1756844176188,0.06,206.76,206.75,22.20031344]
[1756844176390,0.06,206.76,206.75,14.31559401]
[1756844176784,0.06,206.76,206.75,53.53559401]
[1756844176986,1e-08,206.76,206.75,61.84679815]
[1756844177585,1e-08,206.76,206.75,65.835333]
[1756844177911,1e-08,206.76,206.75,70.67209237]
[1756844178272,1e-08,206.76,206.75,31.45209237]
[1756844178482,1e-08,206.76,206.75,58.79883809]
[1756844178679,1e-08,206.76,206.75,70.67209237]
[1756844179800,1e-08,206.76,206.75,70.63209237]
[1756844180601,1e-08,206.76,206.75,70.18560766]
[1756844182411,1e-08,206.76,206.75,43.99675937]
[1756844182584,1e-08,206.76,206.75,4.83675937]
[1756844182785,11.87325429,206.76,206.73,43.9772273]
[1756844183011,1e-08,206.76,206.73,43.9772273]
[1756844183496,1e-08,206.76,206.73,44.6972273]
[1756844183810,11.87325429,206.76,206.73,43.9772273]
[1756844183987,1e-08,206.76,206.73,43.9772273]
[1756844184186,11.87325429,206.76,206.73,43.9772273]
[1756844184394,11.87325429,206.76,206.73,4.8372273]
[1756844184614,12.56325428,206.75,206.73,69.9372273]
[1756844184808,1e-08,206.76,206.73,30.8372273]
[1756844185018,11.87325429,206.76,206.73,30.8372273]
[1756844185188,11.87325429,206.76,206.73,4.8372273]
[1756844185388,11.87325428,206.74,206.73,4.8372273]
[1756844185615,12.56325428,206.74,206.71,4.83769532]
[1756844185797,11.87325428,206.72,206.71,4.83769532]
[1756844186398,12.56325428,206.72,206.69,39.08]
[1756844186717,1e-08,206.76,206.67,43.89863163]
[1756844186718,11.87325428,206.7,206.67,43.89863163]
[1756844186892,11.87325428,206.69,206.67,39.06]
[1756844187086,11.87325428,206.69,206.65,4.83909992]
[1756844187404,11.87325428,206.69,206.65,44.63909992]
[1756844188187,11.87325428,206.68,206.65,43.91909992]
[1756844188409,11.87325428,206.66,206.64,30.83929372]
[1756844188598,12.09170294,206.76,206.63,43.899555]
[1756844188599,11.87325428,206.65,206.63,43.899555]
[1756844188807,11.87325428,206.64,206.63,43.899555]
[1756844189119,11.87325428,206.64,206.63,30.839555]
[1756844190030,11.87325428,206.64,206.63,4.839555]
[1756844190215,11.87325428,206.64,206.61,4.83986063]
[1756844190395,12.09306261,206.74,206.6,0.03]
[1756844190396,11.87325428,206.62,206.6,0.03]
[1756844190905,0.69,206.68,206.61,0.72]
[1756844191111,11.87325428,206.66,206.61,0.72]
[1756844191438,11.87325428,206.65,206.6,39.07]
[1756844191604,4.83770227,206.71,206.6,39.07]
[1756844191605,11.87325428,206.64,206.6,39.07]
[1756844191805,11.87325428,206.64,206.6,0.03]
[1756844192003,11.87325428,206.61,206.6,0.03]
[1756844192596,12.56325428,206.61,206.6,0.03]
[1756844194243,17.40329106,206.61,206.6,0.03]
[1756844195310,0.69,206.65,206.6,0.03]
[1756844195523,11.87325428,206.63,206.6,0.03]
[1756844195911,11.87325428,206.61,206.6,0.03]
[1756844196109,11.87325428,206.63,206.6,0.03]
[1756844196304,11.87325428,206.66,206.6,12.62325428]
[1756844196519,11.87325428,206.66,206.61,4.84003678]
[1756844196725,11.87325428,206.64,206.61,4.84003678]
[1756844196907,11.87325428,206.62,206.6,4.87022808]
[1756844197319,11.87325428,206.63,206.6,4.87022808]
[1756844198416,11.87325428,206.61,206.6,0.03]
[1756844198810,12.56325428,206.61,206.6,0.03]
[1756844199906,164.23742419,206.73,206.6,0.03]
[1756844200107,11.87325428,206.65,206.6,0.75]
[1756844200331,11.87325428,206.65,206.61,0.72]
[1756844200731,11.87325428,206.65,206.62,4.83980253]
[1756844200906,0.69,206.68,206.62,4.83980253]
[1756844201106,11.87325428,206.66,206.62,16.93930887]
[1756844202444,11.87325428,206.67,206.62,17.62930887]
[1756844202949,11.87325428,206.63,206.62,4.83980253]
[1756844203750,11.87325428,206.64,206.62,4.83980253]
[1756844203952,11.87325428,206.64,206.6,0.03]
[1756844204157,11.87325428,206.62,206.6,0.03]
[1756844204356,11.87325428,206.61,206.6,0.03]
[1756844204928,12.52325428,206.61,206.6,0.03]
[1756844205128,11.87325428,206.61,206.6,0.03]
[1756844205445,12.52325428,206.61,206.6,0.03]
[1756844205835,11.87325428,206.61,206.6,0.03]
[1756844206035,0.65,206.66,206.6,0.03]
[1756844206236,11.87325428,206.61,206.6,0.03]
[1756844206830,12.52325428,206.61,206.6,0.03]
[1756844207450,11.87325428,206.61,206.6,0.03]
[1756844208061,12.52325428,206.61,206.6,0.03]
[1756844209069,0.65,206.64,206.6,0.03]
[1756844209240,11.87325428,206.61,206.6,0.03]
[1756844210253,11.87325428,206.63,206.6,0.03]
[1756844210430,11.87325428,206.62,206.6,0.03]
[1756844210634,11.87325428,206.61,206.6,0.03]
[1756844211647,11.87325428,206.63,206.6,0.72]
[1756844211826,11.87325428,206.62,206.6,0.03]
[1756844212032,11.87325428,206.68,206.61,26.15884829]
[1756844212352,11.87325428,206.68,206.62,12.56325428]
[1756844213256,11.87325428,206.68,206.63,0.69]
[1756844213757,11.87325428,206.67,206.64,4.8393341]
[1756844214131,11.87325428,206.68,206.65,0.69]
[1756844215261,11.87325428,206.68,206.66,4.83886576]
[1756844215455,11.87325428,206.69,206.66,5.52886576]
[1756844215635,11.87325428,206.7,206.66,5.52886576]
[1756844215835,11.87325428,206.69,206.66,4.83886576]
[1756844216259,11.87325428,206.7,206.66,5.52886576]
[1756844216756,11.87325428,206.69,206.66,5.52886576]
[1756844217341,11.87325428,206.69,206.64,16.93730614]
[1756844217550,11.87325428,206.67,206.64,4.8393341]
[1756844217863,11.87325428,206.66,206.64,4.8393341]
[1756844218063,11.87325428,206.67,206.64,4.8393341]
[1756844218960,11.87325428,206.67,206.64,5.5293341]
[1756844219157,11.87325428,206.68,206.65,0.69]
[1756844219367,11.87325428,206.68,206.66,0.69]
[1756844219549,11.87325428,206.68,206.64,12.09833526]
[1756844219749,11.87325428,206.68,206.64,12.78833526]
[1756844219968,39.49,206.72,206.65,0.69]
[1756844220265,11.87325428,206.7,206.65,0.69]
[1756844220651,11.87325428,206.7,206.66,0.69]
[1756844220851,11.87325428,206.72,206.67,0.69]
[1756844221181,38.82,206.73,206.67,0.69]
[1756844221347,11.87325428,206.72,206.67,0.69]
[1756844221548,11.87325428,206.7,206.64,29.50092364]
[1756844221855,11.87325428,206.7,206.64,55.50092364]
[1756844222176,1e-08,206.76,206.67,13.59559401]
[1756844222468,11.87325428,206.73,206.68,0.69]
[1756844222641,38.82000001,206.76,206.72,26.0]
[1756844222642,1e-08,206.76,206.72,26.0]
[1756844222841,1e-08,206.76,206.73,0.69]
[1756844223264,1e-08,206.76,206.74,4.83699332]
[1756844223847,11.87325429,206.76,206.74,4.83699332]
[1756844224044,1e-08,206.76,206.74,4.83699332]
[1756844224369,1e-08,206.76,206.74,5.52699332]
[1756844224558,1e-08,206.76,206.74,4.83699332]
[1756844225058,1e-08,206.76,206.75,0.69]
[1756844225257,1e-08,206.76,206.75,30.99560766]
[1756844225673,1e-08,206.76,206.75,31.13776923]
[1756844226043,0.65,206.86,206.79,39.59559401]
[1756844226243,11.87325428,206.86,206.77,26.0]
[1756844226464,0.65,206.85,206.79,11.87325428]
[1756844226674,4.71768858,206.96,206.84,11.87325428]
[1756844226871,4.71768858,206.96,206.94,11.87325428]
[1756844227044,2.52932203,207.0,206.91,13.59559401]
[1756844227244,2.52932203,207.0,206.92,5.52278561]
[1756844227444,12.52325428,207.01,206.95,11.87325428]
[1756844227643,0.65,207.01,206.95,11.87325428]
[1756844227848,0.65,207.01,206.96,11.87325428]
[1756844228065,12.52325428,207.01,206.96,11.87325428]
[1756844228270,39.12,207.05,206.93,14.28559401]
[1756844228570,0.65,207.01,206.93,0.69]
[1756844228768,12.52325428,207.01,206.96,11.87325428]
[1756844228965,0.65,207.0,206.97,11.87325428]
[1756844229269,0.65,206.99,206.95,16.70527514]
[1756844229470,0.65,206.98,206.91,13.59559401]
[1756844229658,0.65,206.98,206.89,12.77367854]
[1756844229659,11.87325428,206.93,206.85,0.69]
[1756844229861,11.87325428,206.93,206.87,11.87325428]
[1756844230372,12.52325428,206.94,206.88,11.87325428]
[1756844230563,11.87325428,206.92,206.86,11.87325428]
[1756844230766,11.87325428,206.92,206.83,39.12]
[1756844230767,11.87325428,206.9,206.83,14.5289004]
[1756844230952,11.87325428,206.89,206.83,26.40215468]
[1756844231155,12.52325428,206.91,206.85,11.87325428]
[1756844231346,0.68,206.95,206.89,11.87325428]
[1756844231548,11.87325428,206.95,206.89,11.87325428]
[1756844231756,11.87325428,206.9,206.8,0.68]
[1756844232072,11.87325428,206.87,206.81,11.87325428]
[1756844232257,11.87325428,206.84,206.78,25.46884829]
[1756844232588,11.87325428,206.84,206.78,11.87325428]
[1756844232980,11.87325428,206.84,206.77,0.68]
[1756844233154,11.87325428,206.84,206.78,11.87325428]
[1756844233355,0.68,206.87,206.77,0.68]
[1756844233356,11.87325428,206.81,206.77,5.51627747]
[1756844233652,0.68,206.88,206.79,11.87325428]
[1756844233858,11.87325428,206.86,206.8,11.87325428]
[1756844234049,11.87325428,206.82,206.74,0.68]
[1756844234254,11.87325428,206.81,206.75,25.46884829]
[1756844234561,0.68,206.85,206.78,11.87325428]
[1756844234562,11.87325428,206.84,206.78,11.87325428]
[1756844234961,11.87325428,206.83,206.77,13.59559401]
[1756844235161,4.83372522,206.88,206.77,13.59559401]
[1756844235162,0.68,206.88,206.79,11.87325428]
[1756844235361,11.87325428,206.84,206.8,4.83558994]
[1756844235579,11.87325428,206.83,206.8,4.83558994]
[1756844237287,11.87325428,206.81,206.74,0.68]
[1756844237599,0.68,206.82,206.74,0.68]
[1756844237600,7.8699111,206.8,206.76,4.83652544]
[1756844237786,7.8699111,206.83,206.78,7.8699111]
[1756844238081,0.68,206.86,206.76,4.83652544]
[1756844238384,0.68,206.85,206.76,12.70643654]
[1756844238563,4.83395369,206.87,206.76,4.83652544]
[1756844238759,0.68,206.84,206.76,4.83652544]
[1756844238976,7.8699111,206.78,206.73,18.43282131]
[1756844239288,7.8699111,206.78,206.73,4.8372273]
[1756844239898,7.8699111,206.78,206.73,5.5172273]
[1756844240092,7.8699111,206.78,206.73,4.8372273]
[1756844240295,7.8699111,206.81,206.75,7.8699111]
[1756844240806,7.8699111,206.81,206.76,7.8699111]
[1756844241100,39.04,206.85,206.74,21.46550511]
[1756844241101,7.8699111,206.8,206.74,21.46550511]
[1756844241607,7.8699111,206.81,206.76,4.83652544]
[1756844241798,7.8699111,206.8,206.76,4.83652544]
[1756844242201,0.68,206.83,206.76,4.83652544]
[1756844242202,7.8699111,206.81,206.76,5.51652544]
[1756844242400,7.8699111,206.8,206.76,4.83652544]
[1756844242576,7.8699111,206.84,206.78,7.8699111]
[1756844242909,7.8699111,206.86,206.8,7.8699111]
[1756844243413,7.8699111,206.87,206.82,7.8699111]
[1756844243620,7.8699111,206.88,206.83,0.68]
[1756844243912,7.8699111,206.89,206.84,0.68]
[1756844244418,7.8699111,206.85,206.79,4.83582378]
[1756844244583,4.83231854,206.94,206.79,4.83582378]
[1756844244788,0.14216157,206.95,206.83,7.8699111]
[1756844244789,0.68,206.9,206.83,7.8699111]
[1756844244988,7.8699111,206.9,206.84,7.8699111]
[1756844245416,7.8699111,206.87,206.84,4.8346548]
[1756844245913,7.8699111,206.9,206.85,0.68]
[1756844246084,0.68,206.89,206.83,4.83485749]
[1756844246285,7.8699111,206.84,206.8,4.83555044]
[1756844246802,0.68,206.88,206.81,0.68]
[1756844247008,7.8699111,206.84,206.8,4.83555044]
[1756844247508,7.8699111,206.84,206.8,5.51555044]
[1756844248239,7.8699111,206.81,206.74,4.83699332]
[1756844248506,7.8699111,206.79,206.74,19.11258733]
[1756844248705,0.68,206.83,206.75,0.68]
[1756844248706,7.8699111,206.8,206.75,0.68]
[1756844248899,7.8699111,206.8,206.74,26.30249843]
[1756844248900,39.64,206.86,206.77,7.8699111]
[1756844249088,7.8699111,206.82,206.77,7.8699111]
[1756844249290,7.8699111,206.81,206.77,0.68]
[1756844249603,7.8699111,206.81,206.78,4.83605764]
[1756844250208,0.68,206.84,206.78,4.83605764]
[1756844250405,7.8699111,206.81,206.78,4.83605764]
[1756844250609,7.8699111,206.79,206.78,4.83605764]
[1756844250808,0.68,206.84,206.78,4.83605764]
[1756844251103,7.8699111,206.81,206.78,4.83605764]
[1756844251302,0.68,206.85,206.78,0.68]
[1756844251497,7.8699111,206.82,206.78,0.68]
[1756844251698,0.06,206.83,206.78,8.5499111]
[1756844251903,0.06,206.83,206.79,8.5499111]
[1756844252204,0.06,206.83,206.8,0.68]
[1756844253287,0.06,206.83,206.79,4.83582378]
[1756844253487,0.06,206.83,206.79,5.51582378]
[1756844254006,0.06,206.83,206.77,7.8999111]
[1756844254007,7.8699111,206.8,206.77,0.03]
[1756844254315,7.8699111,206.78,206.77,0.03]
[1756844254993,8.5499111,206.78,206.77,0.03]
[1756844255602,13.38596874,206.78,206.77,0.03]
[1756844257685,21.54020298,206.78,206.77,0.03]
[1756844257884,0.42648471,206.77,206.74,0.03]
[1756844258087,7.8699111,206.75,206.74,0.03]
[1756844258313,46.7499111,206.75,206.74,0.03]
[1756844258612,26.0,206.72,206.65,0.03]
[1756844258793,7.8699111,206.66,206.65,0.03]
[1756844259188,8.5499111,206.66,206.65,0.03]
[1756844259391,0.28432314,206.75,206.65,0.03]
[1756844259604,7.8699111,206.69,206.65,5.54902539]
[1756844260208,7.8699111,206.7,206.66,0.68]
[1756844260414,7.8699111,206.76,206.66,0.68]
[1756844260415,7.8699111,206.76,206.69,7.8699111]
[1756844260602,7.8699111,206.78,206.72,7.8699111]
[1756844260794,7.8699111,206.78,206.7,0.68]
[1756844261108,7.8699111,206.78,206.7,26.68]
[1756844261301,7.8699111,206.78,206.72,7.8699111]
[1756844261696,0.06,206.83,206.7,26.0]
[1756844261697,0.06,206.83,206.75,7.8699111]
[1756844261904,0.06,206.83,206.82,7.8699111]
[1756844262292,0.06,206.83,206.82,8.5499111]
[1756844263803,0.06,206.83,206.82,13.38503342]
[1756844264793,0.06,206.83,206.77,13.59559401]
[1756844264794,0.06,206.83,206.78,16.4198222]
[1756844264995,0.06,206.83,206.79,0.68]
[1756844265521,0.06,206.83,206.79,7.8699111]
[1756844265700,0.06,206.83,206.79,8.5499111]
[1756844265899,0.06,206.83,206.82,7.8699111]
[1756844266302,7.9299111,206.83,206.79,4.83582378]
[1756844266609,7.8699111,206.81,206.77,4.83629153]
[1756844266818,0.76,206.83,206.73,14.53523583]
[1756844266819,7.8699111,206.78,206.73,14.53523583]
[1756844266992,0.06,206.83,206.71,4.83769532]
[1756844267194,7.8699111,206.79,206.74,0.68]
[1756844267414,7.8699111,206.79,206.75,0.68]
[1756844267809,0.76,206.83,206.74,7.8699111]
[1756844267810,7.8699111,206.8,206.74,7.8699111]
[1756844268014,7.8699111,206.8,206.75,4.83675937]
[1756844268212,7.8699111,206.79,206.75,4.83675937]
[1756844268416,7.8699111,206.78,206.75,4.83675937]
[1756844268812,0.76,206.83,206.76,0.68]
[1756844268813,7.8699111,206.79,206.76,0.68]
[1756844269019,7.8699111,206.79,206.75,4.83675937]
[1756844269327,7.8699111,206.79,206.75,5.51675937]
[1756844269704,7.8699111,206.78,206.75,4.83675937]
[1756844269904,0.76,206.83,206.74,4.8369652]
[1756844270105,7.8699111,206.78,206.75,0.68]
[1756844270305,7.8699111,206.78,206.75,0.03]
[1756844270501,7.8699111,206.79,206.76,0.68]
[1756844270794,7.8699111,206.8,206.76,0.68]
[1756844271014,7.9299111,206.81,206.76,7.8699111]
[1756844271222,7.9299111,206.81,206.76,8.5499111]
[1756844271423,7.9299111,206.81,206.76,0.68]
[1756844272128,7.8699111,206.8,206.76,5.51652364]
[1756844272305,7.8699111,206.8,206.75,0.03]
[1756844272510,7.8699111,206.79,206.75,5.54653365]
[1756844273997,0.06,206.81,206.75,5.54653365]
[1756844274207,0.06,206.81,206.75,0.03]
[1756844274526,0.7,206.8,206.75,0.03]
[1756844274704,7.8699111,206.77,206.75,4.86675937]
[1756844275623,7.8699111,206.79,206.75,4.86675937]
[1756844275816,7.9299111,206.81,206.76,0.68]
[1756844276329,7.8699111,206.8,206.77,4.83629153]
[1756844276828,7.8699111,206.79,206.75,4.86656234]
[1756844277001,7.8699111,206.79,206.75,0.03]
[1756844277414,7.8699111,206.78,206.75,4.86670429]
[1756844277629,0.76,206.81,206.75,4.86670429]
[1756844277630,7.8699111,206.76,206.75,0.03]
[1756844279121,8.5699111,206.76,206.75,0.03]
[1756844280005,7.8699111,206.76,206.75,0.03]
[1756844280204,8.5699111,206.76,206.75,0.03]
[1756844281031,13.40643654,206.76,206.75,0.03]
[1756844281724,8.5699111,206.76,206.75,0.03]
[1756844282037,7.8699111,206.77,206.75,0.03]
[1756844282831,7.8699111,206.76,206.75,0.03]
[1756844283205,0.06,206.81,206.75,8.5799111]
[1756844283401,7.8699111,206.79,206.75,0.71]
[1756844283616,7.8699111,206.78,206.75,0.03]
[1756844284326,7.8699111,206.76,206.75,0.03]
[1756844285733,8.5699111,206.76,206.75,0.03]
[1756844286427,26.0,206.8,206.75,0.03]
[1756844286736,0.06,206.81,206.78,7.8699111]